Cogmind - Beta 11.1 @@@ ROGUE MODE // 2022.09.24 @ 17:08:29 Player: HeartGrenade Result: Destroyed by M Guard with Graviton Cannon Performance ------------- Evolutions (9) 4500 Regions Visited (32) 6400 Robots Destroyed (437) 2185 Value Destroyed (21080) 21080 Prototype IDs (64) 1280 Alien Tech Used (5) 1000 Bonus (11372) 11372 TOTAL SCORE: 47817 Bonus ------- High Alert Combat Kills 3529 Follower Combat Kills 1104 Network Hubs Disabled 200 Met Imprinter 300 Met Zhirov 300 Met Warlord at Base 500 MAIN.C Attacked Warlord 500 A7 Reached Mainframe 300 Met R17 at Cetus 500 Met Warlord at Research 2000 Invited to Help at Command 2000 Scanned by Researcher 500 Friendly Fire -361 Cogmind --------- Core Integrity 0/1600 Matter 237/300 Energy 699/700 System Corruption 32% Temperature Cool (0) Movement Core (50) Location -1/Command Parts ------- > --- POWER (3) -------- (None) > --- PROPULSION (7) --- (None) > --- UTILITY (12) ----- Experimental Energy Well Machine Analyzer Enhanced Optical Array Core Analyzer Armor Integrity Analyzer System Mapper > --- WEAPON (3) ------- (None) > --- INVENTORY (5) ---- Experimental Energy Well (600) Advanced Remote Datajack RU-N14's Throwing Claymores v3 (10) Core Stripper Peak State ------------ > --- POWER ------------ Light Quantum Reactor Light Quantum Reactor Improved Quantum Reactor > --- PROPULSION ------- Armored Heavy Treads Improved Heavy Siege Treads Biometal Heavy Treads > --- UTILITY ---------- Advanced Cooling System Advanced Cooling System Huge Storage Unit Enhanced Optical Array Advanced Targeting Computer Experimental Core Analyzer Armor Integrity Analyzer Advanced Phase Shifter Hardened Medium Armor Plating Advanced Force Field Phase Redirector > --- WEAPON ----------- Enhanced Quantum Rifle Enhanced Quantum Rifle Enhanced Nova Cannon > --- INVENTORY -------- Improved Heavy Siege Treads Improved Heavy Siege Treads Centrium Wheel Experimental Coolant Injector Experimental Energy Well Hardened Medium Armor Plating Advanced Hacking Suite System Mapper Subatomic Replicator Terrabomb Terrabomb Precision Phase Gun Heavy Dispersion Rifle Compact HERF Cannon Improved Potential Cannon Helical Railgun Neutron Missile Launcher Advanced Remote Datajack RU-N14's Throwing Claymores v3 RU-N14's Throwing Claymores v3 RU-N14's Throwing Claymores v3 CR-A16's Behemoth Slayer [Rating: 197] Favorites ----------- Power Light Quantum Reactor Engine Improved Deuterium Engine Power Core Micro Fission Core Reactor Light Quantum Reactor Propulsion Light Treads Treads Light Treads Leg Carbon-fiber Leg Wheel Centrium Wheel Utility Advanced Targeting Computer Device Seismic Detector Storage Huge Storage Unit Processor Advanced Targeting Computer Hackware Improved System Shield Protection Centrium Medium Armor Plating Artifact Phase Redirector Weapon Advanced Plasma Cannon Energy Gun Enhanced Quantum Rifle Energy Cannon Advanced Plasma Cannon Ballistic Gun Enhanced Autogun Ballistic Cannon Heavy Linear Accelerator Launcher Heavy Missile Launcher Special Weapon Molecular Deconstructor Impact Weapon Core Stripper Slashing Weapon Katana Piercing Weapon CR-A16's Pointy Stick Special Melee Weapon Improved Datajack Build | -11 -10 -10 -9 -9 -8 -8 -7 -7 -7 -7 -6 -6 -6 -6 -6 -6 -5 -5 -5 -5 -4 -4 -4 -4 -4 -3 -3 -3 -2 -2 -1 -1 ------- Run | Scr Mat Min Mat Min Mat Sto Fac Low Low Zio Pro Fac Ext Cet Arc Hub Fac Upp Upp War Pro Fac Upp Upp Zhi Pro Res Tes Res Qua Acc Com Slots Evolved 18 | . . . 2 . 2 . 2 . . . . 2 . . . . 2 . . . . 2 . . . . 2 . 2 . 2 . Power 2 | . . . . . . . . . . . . . . . . . 1 . . . . . . . . . . . 1 . . . Propulsion 5 | . . . 1 . 1 . . . . . . . . . . . . . . . . . . . . . 2 . . . 1 . Utility 10 | . . . 1 . 1 . 2 . . . . 1 . . . . 1 . . . . 2 . . . . . . 1 . 1 . Weapon 1 | . . . . . . . . . . . . 1 . . . . . . . . . . . . . . . . . . . . Parts Attached 494 | 5 5 6 15 1 32 12 37 2 4 4 2 20 22 10 6 18 41 3 2 11 6 14 3 3 6 3 19 42 37 20 61 22 Power 44 | 1 . . 1 . 2 . 2 . . . . . . 1 1 . 7 . . 1 . 2 . . 1 . 1 4 8 1 7 4 Engine 10 | 1 . . 1 . 1 . 2 . . . . . . 1 . . 2 . . . . 1 . . . . . . . . . 1 Core 5 | . . . . . 1 . . . . . . . . . 1 . 3 . . . . . . . . . . . . . . . Reactor 29 | . . . . . . . . . . . . . . . . . 2 . . 1 . 1 . . 1 . 1 4 8 1 7 3 Propulsion 84 | 2 2 2 5 . 9 5 5 . 1 1 . . 3 2 . . 5 . . . . 1 . . . 1 4 6 11 1 14 4 Treads 62 | 2 . . 4 . 9 5 5 . 1 1 . . 3 2 . . 5 . . . . 1 . . . . 4 3 4 1 8 4 Leg 10 | . 2 2 1 . . . . . . . . . . . . . . . . . . . . . . . . . 5 . . . Wheel 12 | . . . . . . . . . . . . . . . . . . . . . . . . . . 1 . 3 2 . 6 . Hover . | . . . . . . . . . . . . . . . . . . . . . . . . . . . . . . . . . Flight . | . . . . . . . . . . . . . . . . . . . . . . . . . . . . . . . . . Utility 186 | . 3 3 5 . 9 3 16 1 . . . 9 9 5 2 13 21 2 2 6 4 7 1 . 2 1 8 14 9 5 20 6 Device 107 | . 1 2 4 . 5 3 9 1 . . . 6 6 . 2 8 8 2 1 4 3 4 1 . 1 . 6 10 5 2 11 2 Storage 12 | . 2 1 . . . . . . . . . . . 1 . . . . . . . 1 . . . . . 2 . 1 2 2 Processor 20 | . . . 1 . . . 1 . . . . 2 . . . 1 3 . . 1 . 1 . . 1 . 2 1 2 . 3 1 Hackware 6 | . . . . . . . . . . . . . . . . . 2 . . . . 1 . . . . . 1 . . 1 1 Protection 40 | . . . . . 4 . 6 . . . . 1 3 4 . 4 8 . 1 1 1 . . . . 1 . . 2 1 3 . Artifact 1 | . . . . . . . . . . . . . . . . . . . . . . . . . . . . . . 1 . . Weapon 180 | 2 . 1 4 1 12 4 14 1 3 3 2 11 10 2 3 5 8 1 . 4 2 4 2 3 3 1 6 18 9 13 20 8 Energy Gun 30 | 1 . 1 . 1 3 . . . . . . 1 1 . . 1 . . . . . . . 1 1 . 1 3 7 1 6 1 Energy Cannon 46 | . . . 2 . 5 1 3 . . . . 2 2 . . . 6 . . 1 . 3 . 1 2 . 2 4 1 3 3 5 Ballistic Gun 40 | 1 . . . . 2 2 5 . 1 1 1 3 3 1 2 3 1 1 . . 1 . . . . . 2 3 . 6 1 . Ballistic Cannon 10 | . . . 1 . . . . . . . . . . . . . . . . 1 . . . . . . . . . . 7 1 Launcher 7 | . . . . . . . . . . . 1 1 . . . . . . . . . 1 2 1 . . 1 . . . . . Special Weapon 16 | . . . . . . 1 . . . . . 2 1 . . . . . . 1 1 . . . . . . 5 1 3 1 . Impact Weapon 2 | . . . . . . . . . . . . . . . . . . . . . . . . . . . . . . . 1 1 Slashing Weapon 7 | . . . . . . . 6 . 1 . . . . . . . . . . . . . . . . . . . . . . . Piercing Weapon 11 | . . . . . . . . . . 1 . 2 . . . 1 1 . . 1 . . . . . 1 . 3 . . 1 . Special Melee Weapon 11 | . . . 1 . 2 . . 1 1 1 . . 3 1 1 . . . . . . . . . . . . . . . . . Unidentified Prototypes 35 | . . . . . 4 . . . . . . 1 . 2 1 4 1 . . 3 1 . 1 . 2 . . 7 3 2 3 . Corrupted Parts 1 | . . . . . . . . . . . . . . . . . 1 . . . . . . . . . . . . . . . System Corruption 8 | . . . . . . . . . . . . . . . . . 8 . . . . . . . . . . . . . . . Parts Lost 127 | . 1 1 . . 4 1 7 . . . . . 1 . . 4 13 1 . . . 6 . . . 5 5 20 2 5 32 19 Power 19 | . 1 . . . 1 . . . . . . . . . . . 2 . . . . 1 . . . . 1 3 . . 6 4 Propulsion 32 | . . . . . 1 1 4 . . . . . 1 . . . 1 . . . . 1 . . . 1 . 7 1 . 9 5 Utility 52 | . . . . . 2 . 1 . . . . . . . . 3 7 1 . . . 2 . . . 4 2 7 1 5 11 6 Weapon 24 | . . 1 . . . . 2 . . . . . . . . 1 3 . . . . 2 . . . . 2 3 . . 6 4 Highest Loss Streak 19 | . 1 1 . . 2 1 3 . . . . . 1 . . 2 6 1 . . . 3 . . . 3 2 8 1 4 9 19 To Critical Strikes 5 | . . . . . . . . . . . . . 1 . . . . . . . . . . . . . . 1 . . 2 1 Average Slot Usage (%) 88 | . 93 85 97 100 99 98 94 100 100 100 100 99 99 92 86 85 82 87 88 87 87 81 83 83 71 77 77 69 85 84 77 76 Engine 3 | . 14 . 9 11 8 . 6 7 7 7 7 6 6 6 1 . . . . . . 1 5 5 2 . . . . . . 1 Core 1 | . . . . . . 9 . . . . . . . . 4 6 6 11 11 8 5 3 . . . . . . . . . . Reactor 3 | . . . . . . . . . . . . . . . . . 2 . . 2 5 5 5 5 7 10 9 5 12 13 9 5 Treads 17 | . 4 . 21 33 36 35 29 30 30 30 30 26 25 19 13 13 11 11 11 11 11 10 10 10 10 7 9 7 11 12 9 9 Leg 1 | . 23 28 11 . . . . . . . . . . . . . . . . . . . . . . . . . . . . . Device 14 | . 9 6 10 11 9 8 14 15 15 15 15 12 13 13 13 18 12 16 17 18 17 19 21 21 21 17 20 10 14 16 18 10 Storage 6 | . 11 21 11 11 9 9 7 7 7 7 7 6 6 6 6 6 5 5 5 5 5 8 10 10 7 5 4 4 4 4 4 6 Processor 11 | . . . 10 11 9 9 7 7 7 7 7 13 13 13 13 7 11 11 11 6 5 8 10 10 12 12 10 20 21 18 17 16 Hackware 1 | . . . . . . . . . . . . . . . . . 1 5 5 5 5 5 5 5 5 2 . 2 2 . . 1 Protection 7 | . . . . . 8 9 10 15 15 15 15 13 13 13 13 13 10 5 5 7 9 4 . . . 2 2 . 3 3 2 5 Energy Gun 4 | . 14 14 11 11 6 . . . . . . 5 6 6 6 6 2 . . . . . . 1 . 5 4 3 10 7 5 1 Energy Cannon 6 | . . . 8 11 10 8 6 7 7 7 7 5 5 6 6 6 7 11 11 10 11 9 10 8 3 6 3 3 2 2 1 2 Ballistic Gun 2 | . 14 14 1 . . 9 5 2 . 3 . 4 5 5 2 4 2 5 5 . 4 3 . . . . 2 2 . 1 1 . Naked Turns . | . . . . . . . . . . . . . . . . . . . . . . . . . . . . . . . . . Heaviest Build 197 | 6 17 54 57 57 67 68 80 74 70 70 74 80 85 129 131 135 159 140 138 147 147 149 136 136 145 158 159 153 182 197 174 124 Greatest Support 238 | 3 26 30 60 60 101 96 98 90 90 98 98 98 106 160 160 160 160 150 150 150 150 160 160 160 160 160 213 215 210 210 238 178 Greatest Overweight (x) 42 | 1 3 1 1 . . 1 1 . . . . . . 1 . . 1 . . . . . . . . 5 5 8 42 . 13 4 Average Overweight (x) . | . . . . . . . . . . . . . . . . . . . . . . . . . . 2 2 3 . . 2 1 Largest Inventory Capacity 25 | 5 10 20 20 20 20 20 20 20 20 20 20 20 20 25 25 25 25 25 25 25 25 25 25 25 25 25 25 25 25 25 25 10 Average Capacity 22 | 5 8 15 20 20 20 20 20 20 20 20 20 20 20 24 25 25 25 25 25 25 25 25 25 25 25 25 25 25 25 25 21 9 Most Carried 25 | 4 10 14 20 20 20 20 20 20 20 20 20 20 20 25 25 25 25 25 25 25 25 25 25 25 25 25 25 25 25 25 25 10 Average Carried 21 | 2 7 12 18 19 19 19 19 20 19 19 20 19 19 23 24 24 24 23 25 24 25 24 24 25 24 24 23 22 24 24 19 9 Final Capacity 25 | 5 10 20 20 20 20 20 20 20 20 20 20 20 20 25 25 25 25 25 25 25 25 25 25 25 25 25 25 25 25 25 10 5 Final Carried 25 | 3 10 14 20 20 18 20 20 20 20 20 20 20 20 25 25 25 25 25 25 25 25 25 25 25 25 25 25 25 25 25 10 5 Class Distribution -------------------- 53% | Scavenger-Mutant 16% | Mutant 13% | Scavenger-Tank 7% | Scavenger-Gunner 4% | Generator-Mutant Dominant Class ---------------- Mutant | -10/Materials Mutant | -10/Mines Mutant | -9/Materials Scavenger-Mutant | -9/Mines Mutant | -8/Materials Mutant | -8/Storage Scavenger-Mutant | -7/Factory Scavenger-Mutant | -7/Lower Caves Scavenger-Mutant | -7/Lower Caves Scavenger-Mutant | -7/Zion Scavenger-Mutant | -6/Proximity Caves Scavenger-Mutant | -6/Factory Scavenger-Tank | -6/Extension Scavenger-Tank | -6/Cetus Scavenger-Mutant | -6/Archives Scavenger-Tank | -6/Hub_04(d) Scavenger-Mutant | -5/Factory Scavenger-Mutant | -5/Upper Caves Scavenger-Mutant | -5/Upper Caves Scavenger-Mutant | -5/Warlord Scavenger-Mutant | -4/Proximity Caves Scavenger-Mutant | -4/Factory Scavenger-Mutant | -4/Upper Caves Scavenger-Mutant | -4/Upper Caves Scavenger-Mutant | -4/Zhirov Mutant | -3/Proximity Caves Scavenger-Mutant | -3/Research Scavenger-Mutant | -3/Testing Scavenger-Gunner | -2/Research Generator-Mutant | -2/Quarantine Scavenger-Gunner | -1/Access Scavenger-Mutant | -1/Command Resources | -11 -10 -10 -9 -9 -8 -8 -7 -7 -7 -7 -6 -6 -6 -6 -6 -6 -5 -5 -5 -5 -4 -4 -4 -4 -4 -3 -3 -3 -2 -2 -1 -1 ----------- Run | Scr Mat Min Mat Min Mat Sto Fac Low Low Zio Pro Fac Ext Cet Arc Hub Fac Upp Upp War Pro Fac Upp Upp Zhi Pro Res Tes Res Qua Acc Com Matter Collected 8213 | 257 71 77 157 21 339 547 628 87 . 80 90 208 386 208 92 380 540 45 40 . 181 202 30 81 50 45 444 340 620 378 1391 198 Remotely . | . . . . . . . . . . . . . . . . . . . . . . . . . . . . . . . . . Salvage Created 21148 | 51 155 259 641 49 1652 1178 1345 50 . . 35 462 731 211 371 1211 2230 210 109 . 378 672 . 28 116 93 1009 967 1005 1541 3578 811 Parts 938 | 5 9 9 36 3 74 60 66 1 . . 6 25 33 14 16 56 71 3 9 . 9 42 . 3 2 6 49 54 38 74 133 32 Haulers Intercepted 14 | . 1 . 3 . 4 2 1 . . . . . . . . . 2 . . . . 1 . . . . . . . . . . Recyclers Shooed 14 | . . 1 . . 1 . 1 . . . . . 2 . . . 2 . . . . . . . . . . 1 . . 6 . Parts Field Recycled . | . . . . . . . . . . . . . . . . . . . . . . . . . . . . . . . . . Retrieved Matter . | . . . . . . . . . . . . . . . . . . . . . . . . . . . . . . . . . Parts Self-Destructed 35 | . . . . . . . . 1 . 5 5 . . . . . . 3 9 . 7 . . 1 . 4 . . . . . . Prevented 3 | . . . . . . . . . . . . . . . . . . 3 . . . . . . . . . . . . . . Kills | -11 -10 -10 -9 -9 -8 -8 -7 -7 -7 -7 -6 -6 -6 -6 -6 -6 -5 -5 -5 -5 -4 -4 -4 -4 -4 -3 -3 -3 -2 -2 -1 -1 ------- Run | Scr Mat Min Mat Min Mat Sto Fac Low Low Zio Pro Fac Ext Cet Arc Hub Fac Upp Upp War Pro Fac Upp Upp Zhi Pro Res Tes Res Qua Acc Com Combat Hostiles Destroyed 338 | . 3 4 10 1 28 21 20 1 . . 6 9 12 5 2 14 36 3 2 . 7 12 . 4 . 1 19 18 17 24 51 8 Melee 6 | . . . . . . . 2 . . . . . . . . . 1 . . . . . . . . . . 2 . . 1 . Guns 142 | . 3 4 3 . 13 9 4 1 . . . 5 9 1 . 9 9 . . . . . . 2 . . 7 5 8 21 27 2 Cannons 126 | . . . 7 1 15 12 13 . . . 1 4 2 3 1 5 17 2 2 . 3 4 . . . . 8 3 3 . 16 4 AOE 42 | . . . . . . . . . . . 5 . . . . . 2 . . . 4 5 . 2 . . 4 7 5 3 5 . Classes Destroyed 23 | 1 2 1 4 . 2 1 2 . . . . . 2 . . 3 . . . . . . . . . . . 1 1 1 2 . Worker 16 | . . . . . . . 1 . . . . . . . . 4 . . . . . . . . . . . 3 1 4 3 . Builder 22 | . . . . . . . . . . . . . 1 . . 1 1 . . . . 2 . . . . 2 3 1 5 6 . Tunneler 5 | 2 . . . 1 . . . . . . . . . . . . . . . . . . . . . . 1 . . . 1 . Hauler 14 | . 1 . 3 . 4 2 1 . . . . . . . . . 2 . . . . 1 . . . . . . . . . . Recycler 16 | . . 1 . . 2 1 2 . . . . . 1 . . 2 1 . . . . . . . . . . . 1 . 4 1 Mechanic 3 | . . . . . . 1 . . . . . . . . . . 1 . . . . . . . . . . . . . . 1 Operator 8 | . . . 1 . 1 . . . . . . . . . 6 . . . . . . . . . . . . . . . . . Watcher 13 | . . . 3 . 2 1 . . . . . 2 . . . 1 . . . . . 2 . . . . . . . . 1 1 Swarmer 76 | . . . . . 7 4 . . . . 6 3 . 2 . . 8 1 . . 5 5 . 4 . . 8 . 10 3 10 . Saboteur 1 | . . . . . . . . . . . . . . . . . . . . . . . . . . . . . . 1 . . Grunt 110 | . 3 4 6 1 15 8 9 . . . . 4 3 1 . 5 8 1 . . . . . . . . 7 5 2 9 17 2 Brawler 10 | . . . 1 . . . . . . . . . . . . . 4 . . . . . . . . . . 2 . 1 2 . Duelist 7 | . . . . . . . . . . . . . . . . 1 2 . . . . . . . . . . . . 1 3 . Protector 1 | . . . . . . . . . . . . . . . . . . . . . . . . . . . . . . . 1 . Researcher 2 | . . . . . . . . . . . . . . . . . . . . . . . . . . . . 1 . 1 . . Sentry 52 | . . . 3 . 5 7 6 . . . . 1 6 . 2 2 6 1 . . . . . . . . 2 1 2 3 4 1 Specialist 1 | . . . . . . . . . . . . . . . . 1 . . . . . . . . . . . . . . . . Hunter 20 | . . . . . 1 2 1 1 . . . . . . . . 4 . . . . 2 . . . . . 2 1 . 4 2 Programmer 39 | . . . . . . . 4 . . . . 1 1 . . 1 4 . 2 . 2 5 . . . . 2 7 . 6 4 . Heavy 3 | . . . . . . . . . . . . . . . . 1 . . . . . . . . . . . . . . 2 . Q-Series 4 | . . . . . . . . . . . . . . . . . . . . . . . . . . . . . . . 4 . Behemoth 3 | . . . . . . . . . . . . . 2 . . . . . . . . . . . . 1 . . . . . . Cetus Guard 2 | . . . . . . . . . . . . . . 2 . . . . . . . . . . . . . . . . . . Lightning 3 | . . . . . . . . . . . . . . . . 3 . . . . . . . . . . . . . . . . Executioner 2 | . . . . . . . . . . . . . . . . . . . . . . . . . . . . . 2 . . . Protovariant Y 1 | . . . . . . . . . . . . . . . . . . . . . . . . . . . . 1 . . . . Guerrilla 1 | . . . . . . . . . . . . . . . . . . . . . . . . . . . . . . . . 1 Wizard 2 | . . . . . . . . . . . . . . . . . . . . . . . . . . . . . . . . 2 Best Kill Streak 14 | 2 2 2 4 1 6 6 3 1 . . 3 5 5 2 2 5 7 3 2 . 5 5 . 4 . 1 7 4 5 14 11 3 Combat Bots Only 10 | . 2 2 4 1 6 5 3 1 . . 3 4 5 2 2 3 6 3 2 . 5 5 . 4 . 1 5 4 5 10 8 3 Max Kills in Single Turn 5 | 1 1 1 1 1 1 2 1 1 . . 2 1 1 1 1 5 4 1 1 . 5 3 . 2 . 1 4 2 3 5 2 1 Gunslinging 1 | . . . . . . . . . . . . . . . . . . . . . . . . . . . . . . 1 1 . Exploded 4 | . . . . . . . . . . . 2 . . . . . 2 . . . 4 3 . 2 . . 2 2 3 1 2 . Melee 1 | . . . . . . . 1 . . . . . . . . . 1 . . . . . . . . . . 1 . . 1 . Uniques/NPCs Destroyed . | . . . . . . . . . . . . . . . . . . . . . . . . . . . . . . . . . Combat | -11 -10 -10 -9 -9 -8 -8 -7 -7 -7 -7 -6 -6 -6 -6 -6 -6 -5 -5 -5 -5 -4 -4 -4 -4 -4 -3 -3 -3 -2 -2 -1 -1 -------- Run | Scr Mat Min Mat Min Mat Sto Fac Low Low Zio Pro Fac Ext Cet Arc Hub Fac Upp Upp War Pro Fac Upp Upp Zhi Pro Res Tes Res Qua Acc Com Damage Taken 38527 | . 290 238 418 98 1376 1118 1731 122 . . 183 475 738 427 150 2153 4570 265 78 156 113 894 . 207 . 948 2654 4258 914 2302 7699 3952 Core 4352 | . 58 25 75 17 155 123 175 . . . 34 53 94 37 21 75 319 . 5 . 18 18 . . . 23 144 736 161 372 622 992 Absorbed by Shields 3151 | . . . . . 24 76 283 44 . . . 84 32 194 8 232 160 . . . . . . . . . . 758 406 850 . . Reduced by Siege Mode 965 | . . . . . . . . . . . . . . . . 103 155 11 . . . 38 . . . . . 32 19 25 582 . Redirected to Core 232 | . . . . . . . . . . . . . . . . . . . . . . . . . . . . . . 232 . . Redirected to Shielding 202 | . . . . . . . . . . . . . . . . . 50 . . . . . . . . . . . . . . 152 Regen/Repaired (Parts) 1277 | . . . . . . 379 150 . . 748 . . . . . . . . . . . . . . . . . . . . . . Core Remaining (%) 68 | 100 . 66 . 77 . 49 . . . . 70 . . . . 67 . . . . 65 . . . . 96 . 28 . 63 . . Volleys Fired 1191 | 7 21 17 31 5 99 78 84 10 12 . 8 23 42 17 33 55 92 14 15 10 21 30 10 14 9 11 66 72 39 59 149 38 Largest 3 | 2 2 2 2 2 2 2 2 2 1 . 1 3 3 3 3 3 3 3 3 1 3 3 2 2 1 1 3 3 3 3 3 3 Hottest 279 | 70 70 85 125 125 125 85 90 90 65 . 65 175 175 200 205 205 211 229 229 98 229 229 196 196 98 98 234 266 270 223 279 242 Shots Fired 2363 | 14 42 34 60 10 181 153 154 20 12 . 8 55 113 50 39 134 183 24 25 10 30 67 12 20 9 11 143 129 93 137 328 63 Gun 1282 | 14 42 34 31 5 73 89 71 10 . . . 38 73 33 6 84 52 5 5 . 4 13 . 4 . 3 88 78 69 117 217 24 Cannon 1037 | . . . 29 5 108 64 83 10 12 . 3 15 39 17 33 50 131 19 20 9 25 52 12 13 9 8 52 39 22 14 105 39 Launcher 13 | . . . . . . . . . . . 5 . . . . . . . . . . 2 . 3 . . 3 . . . . . Special 31 | . . . . . . . . . . . . 2 1 . . . . . . 1 1 . . . . . . 12 2 6 6 . Kinetic 625 | 7 21 17 . . 6 89 71 10 . . . 18 36 17 3 42 35 5 5 . 4 13 . . . . 42 35 . 36 102 11 Thermal 1677 | 7 21 17 60 10 175 64 83 10 12 . 3 35 76 33 36 92 148 19 20 9 25 52 12 17 9 11 98 74 91 95 211 52 Explosive 39 | . . . . . . . . . . . 5 . . . . . . . . . 1 2 . 3 . . 3 11 2 6 6 . Electromagnetic 17 | . . . . . . . . . . . . . . . . . . . . . . . . . . . . 8 . . 9 . Robot Hit Streak 42 | 4 7 5 17 20 26 32 30 10 . . 3 7 21 13 8 23 42 9 11 . 13 12 . 17 26 . 29 23 19 21 32 6 Robot Miss Streak 6 | 1 4 2 3 . 2 2 2 5 . . 1 2 4 5 1 6 3 1 1 . 2 2 . . . . 3 4 2 2 3 4 Penetration Max 1 | . . . . . . . . . . . . . . . . 1 . . . . . 1 . . . . . . . 1 1 . Secondary Targets 18 | . 1 1 . . . . . . . . . 1 . . . 1 . . . . . . . . . . . 1 1 8 4 . Max Gunslinging Chain 1 | . 1 1 . . . . . . . . . 1 . . . 1 . . . . . . . . . . . 1 1 1 1 . Shots Hit Robots 1681 | 10 25 22 45 9 138 118 114 14 1 3 4 41 95 40 37 103 153 13 10 . 18 40 . 5 9 4 83 98 58 90 244 37 Core Hits 820 | 4 8 10 18 3 55 40 44 3 . . 8 29 46 23 15 70 74 3 3 . 10 18 . 6 2 1 42 52 33 59 122 19 Critical Kills 25 | . . . . . 1 1 2 . . . . . 1 1 1 . 3 1 . . . 2 . . . . . 1 2 . 9 . Critical Parts Destroyed 12 | . . . . . . . 1 . . . . . . . . 5 . . . . . 1 . . . . . 1 1 . 2 1 Critical Strikes 68 | . 2 1 . . 2 1 3 . . . . . 1 1 1 6 3 1 . . . 3 . . . . 1 7 4 1 29 1 Burn 13 | . 2 1 . . 1 . . . . . . . . . . . . . . . . . . . . . . . 1 . 8 . Meltdown 11 | . . . . . . . 1 . . . . . 1 1 1 . 3 1 . . . 2 . . . . . . 1 . . . Destroy 27 | . . . . . 1 1 2 . . . . . . . . 6 . . . . . 1 . . . . . 2 2 . 11 1 Blast 8 | . . . . . . . . . . . . . . . . . . . . . . . . . . . . . . . 8 . Sever 4 | . . . . . . . . . . . . . . . . . . . . . . . . . . . . 2 . 1 1 . Impale 5 | . . . . . . . . . . . . . . . . . . . . . . . . . . . 1 3 . . 1 . Melee Attacks 100 | . . . . . 2 . 16 1 2 4 . 3 6 1 4 4 3 . . 4 . . . . . 6 5 28 . . 10 1 Kinetic 2 | . . . . . . . . . . . . . . . . . . . . . . . . . . . . . . . 1 1 Impact . | . . . . . . . . . . . . . . . . . . . . . . . . . . . . . . . . . Slashing 17 | . . . . . . . 16 . 1 . . . . . . . . . . . . . . . . . . . . . . . Piercing 63 | . . . . . . . . . . 1 . 3 . . . 4 3 . . 4 . . . . . 6 5 28 . . 9 . Sneak Attacks 28 | . . . . . 2 . 2 1 1 3 . . 6 1 4 . 1 . . . . . . . . . 2 3 . . 2 . Combat Hostiles . | . . . . . . . . . . . . . . . . . . . . . . . . . . . . . . . . . Follow-up Attacks . | . . . . . . . . . . . . . . . . . . . . . . . . . . . . . . . . . Damage Inflicted 58316 | 112 286 249 908 169 2909 2340 2610 250 . . 677 833 2073 1116 1020 3503 5405 437 364 . 1272 2020 . 445 194 101 3367 5414 2804 4768 11272 1398 Guns 23277 | 112 286 249 427 76 1161 1050 864 88 . . . 591 1490 667 94 1871 1083 39 76 . 61 258 . 112 . . 1573 1526 1452 2570 4958 543 Cannons 21368 | . . . 481 93 1748 1290 1408 162 . . 53 242 581 449 926 976 3492 398 288 . 547 1145 . . 194 . 887 657 443 214 3839 855 Explosions 11045 | . . . . . . . . . . . 624 . . . . 656 733 . . . 615 617 . 333 . . 734 2118 849 1821 1945 . Melee 1568 | . . . . . . . 332 . . . . . . . . . 97 . . . . . . . . 101 173 571 . . 294 . Ramming 18 | . . . . . . . 6 . . . . . 2 . . . . . . . . . . . . . . . . 10 . . Kinetic 10886 | 48 96 80 . . 84 1050 864 88 . . . 173 608 303 28 827 695 39 76 . 61 258 . . . . 567 585 . 628 3495 233 Thermal 33394 | 64 190 169 908 169 2825 1290 1408 162 . . 53 660 1463 813 992 2020 3880 398 288 . 547 1224 . 112 194 . 1893 1463 1895 2156 4993 1165 Explosive 10310 | . . . . . . . . . . . 624 . . . . . 733 . . . 615 538 . 333 . . 734 2118 849 1821 1945 . Electromagnetic 1100 | . . . . . . . . . . . . . . . . 656 . . . . . . . . . . . 135 . . 309 . Impact . | . . . . . . . . . . . . . . . . . . . . . . . . . . . . . . . . . Slashing 1372 | . . . . . . . 332 . . . . . . . . . . . . . 49 . . . . . . 542 60 153 236 . Piercing 1236 | . . . . . . . . . . . . . . . . . 97 . . . . . . . . 101 173 571 . . 294 . Highest Corruption 32 | . . . 2 2 1 1 6 1 1 1 . . 1 1 1 13 13 . . . . 1 1 1 1 11 5 19 . 8 21 32 Average Corruption 5 | . . . 1 2 1 1 2 1 1 1 . . 1 1 1 4 7 . . . . 1 1 1 1 1 4 14 . 4 13 22 Corruption Purged 14 | . . . . . . . 5 . . . . . . . 1 . 8 . . . . . . . . . . . . . . . Corruption Blocked 31 | . . . . . . . . . . . . . . . . . . . . . . . . . . . . 6 2 8 . 15 Effects 300 | . . . 4 7 2 15 18 5 2 . . . 6 2 1 26 21 . . . . 1 2 4 3 2 15 61 . 18 58 27 Message Errors 65 | . . . 1 3 1 3 . 1 2 . . . 2 . 1 5 1 . . . . . 2 1 1 1 2 13 . 5 10 10 Matter Fused 58 | . . . 1 . . 2 3 1 . . . . . 1 . 7 8 . . . . . . 1 1 . 3 12 . 5 10 3 Heat Flow Errors 36 | . . . 1 . . 2 5 . . . . . 1 . . 3 . . . . . . . . 1 1 3 6 . 3 7 3 Energy Discharges 29 | . . . 1 1 . 1 1 . . . . . 2 1 . 2 4 . . . . 1 . . . . . 8 . . 7 . Parts Rejected 8 | . . . . . . 1 . . . . . . . . . . 1 . . . . . . . . . . 2 . . 1 3 Data Loss (minor) 31 | . . . . 1 1 1 3 . . . . . . . . 2 4 . . . . . . 2 . . 4 4 . 1 7 1 Data Loss (major) 14 | . . . . 2 . 1 1 3 . . . . . . . 2 . . . . . . . . . . . 1 . . 3 1 Misfires 15 | . . . . . . 2 2 . . . . . 1 . . . . . . . . . . . . . 1 6 . . 2 1 Alerts 5 | . . . . . . . . . . . . . . . . . 1 . . . . . . . . . 1 2 . . 1 . Misdirections 2 | . . . . . . . . . . . . . . . . . . . . . . . . . . . . . . . 1 1 Weapon Failures 37 | . . . . . . 2 3 . . . . . . . . 5 2 . . . . . . . . . 1 7 . 4 9 4 Overload Shots . | . . . . . . . . . . . . . . . . . . . . . . . . . . . . . . . . . Overflow Damage 1727 | . . . 3 . . 17 41 . . . 51 . . . 89 2 107 70 1 . 77 157 . . 31 . 180 140 144 59 510 48 Projectiles 808 | . . . 3 . . 17 . . . . 2 . . . 89 . 91 70 1 . 74 41 . . 31 . . 34 . 13 294 48 Explosions 508 | . . . . . . . . . . . 49 . . . . 2 16 . . . 3 116 . . . . . 76 144 46 56 . Melee 411 | . . . . . . . 41 . . . . . . . . . . . . . . . . . . . 180 30 . . 160 . Knockbacks 26 | . . . . . . . . . . . . . . . . . . . . . . . . . . . . . . . 26 . Impact . | . . . . . . . . . . . . . . . . . . . . . . . . . . . . . . . . . Kinetic 20 | . . . . . . . . . . . . . . . . . . . . . . . . . . . . . . . 20 . Secondary 6 | . . . . . . . . . . . . . . . . . . . . . . . . . . . . . . . 6 . Self-Inflicted Damage 528 | . . . . . . . . . . . 27 . . . . 95 216 . . . . 88 . . . . . 102 . . . . Shots 7 | . . . . . . . . . . . 1 . . . . 1 3 . . . . 1 . . . . . 1 . . . . Rammed 3 | . . . . . . . 1 . . . . . 1 . . . . . . . . . . . . . . . . 1 . . Targets Rammed 3 | . . . . . . . 1 . . . . . 1 . . . . . . . . . . . . . . . . 1 . . Kicked . | . . . . . . . . . . . . . . . . . . . . . . . . . . . . . . . . . Crushed . | . . . . . . . . . . . . . . . . . . . . . . . . . . . . . . . . . Highest Temperature 425 | 80 70 32 102 105 168 310 297 54 . . . 332 228 270 200 198 425 310 54 . 24 12 . . 125 112 364 324 267 227 327 162 Average Temperature 69 | 40 21 11 30 51 40 84 48 27 . . . 81 73 84 38 90 101 207 26 . 14 5 . . 86 47 71 66 92 119 76 43 Received Heat Transfer 5550 | . 165 153 201 60 594 446 495 . . . . 105 219 31 47 188 881 72 . . . . . . . 63 369 430 20 83 477 451 Effects 9 | . . . . . . 1 3 . . . . . . . . . 2 . . . . . . . . . 1 2 . . . . Shutdowns 2 | . . . . . . . . . . . . . . . . . 2 . . . . . . . . . . . . . . . Interference 6 | . . . . . . . 3 . . . . . . . . . . . . . . . . . . . 1 2 . . . . Matter Decay 1 | . . . . . . 1 . . . . . . . . . . . . . . . . . . . . . . . . . . Siege Activations 22 | . . . . . . . . . . . . . . . 1 4 6 1 . . . 1 . . . . . 1 1 4 3 . Total Turns 465 | . . . . . . . . . . . . . . . 3 116 110 15 . . . 18 . . . . . 29 17 51 106 . Longest Duration 58 | . . . . . . . . . . . . . . . 3 58 34 15 . . . 18 . . . . . 29 17 18 56 . Robots Corrupted 1 | . . . . . . . . . . . . . . . . . . . . . . . . . . . . 1 . . . . Combat Hostiles 1 | . . . . . . . . . . . . . . . . . . . . . . . . . . . . 1 . . . . Parts Fried 8 | . . . . . 1 . . . . . . . . . . 2 . . . . . . . . . . . 3 . . 2 . Impact Corruptions 1 | . . . . . . . . . . . . . . . . . . . . . . . . . . . . . . . 1 . Robots Melted 19 | . . . . . . . 1 . . . . . 1 1 1 . 7 1 . . . 4 . . . . . . 1 . 1 1 Combat Hostiles 18 | . . . . . . . 1 . . . . . 1 1 1 . 7 1 . . . 3 . . . . . . 1 . 1 1 Parts Melted 140 | . 3 2 7 2 12 5 4 2 . . . 1 4 1 8 8 19 3 3 . . 11 . . . . 11 3 8 3 18 2 Heat Transferred 49953 | 185 703 518 1702 333 4958 1998 2109 222 . . 74 1258 2709 1449 1600 3534 6075 600 350 . 750 1600 . 148 450 . 2430 1763 2480 2405 6384 1166 Parts Sabotaged 5 | . . . . . . . . . . . . . . . . . 5 . . . . . . . . . . . . . . . Parts Stolen . | . . . . . . . . . . . . . . . . . . . . . . . . . . . . . . . . . Parts Stripped . | . . . . . . . . . . . . . . . . . . . . . . . . . . . . . . . . . Power Chain Reactions . | . . . . . . . . . . . . . . . . . . . . . . . . . . . . . . . . . Missiles Intercepted . | . . . . . . . . . . . . . . . . . . . . . . . . . . . . . . . . . Alert | -11 -10 -10 -9 -9 -8 -8 -7 -7 -7 -7 -6 -6 -6 -6 -6 -6 -5 -5 -5 -5 -4 -4 -4 -4 -4 -3 -3 -3 -2 -2 -1 -1 ------- Run | Scr Mat Min Mat Min Mat Sto Fac Low Low Zio Pro Fac Ext Cet Arc Hub Fac Upp Upp War Pro Fac Upp Upp Zhi Pro Res Tes Res Qua Acc Com Peak Influence 1309 | 10 214 189 263 93 579 499 230 . . . . 254 302 630 381 670 1090 . . . . 425 . . . . 499 753 441 863 1309 1098 Initial 837 | . 6 79 . 43 . 208 106 . . . . . 50 150 252 63 328 . . . . . . . . . . 280 366 160 480 837 Average 342 | 2 90 164 117 73 237 281 103 . . . . 117 171 462 296 229 627 . . . . 220 . . . . 189 438 261 492 867 945 Maximum Alert Level 4 | . 1 . 1 . 2 2 1 . . . . 1 1 2 1 2 3 . . . . 2 . . . . 2 3 2 3 4 3 Low Security (%) 44 | 100 97 100 82 100 54 14 98 . . . . 89 62 10 36 75 . . . . . 56 . . . . 60 11 30 24 . . Level 1 25 | . 2 . 17 . 24 70 1 . . . . 10 37 22 63 1 30 . . . . 36 . . . . 22 39 55 24 . . Level 2 15 | . . . . . 21 14 . . . . . . . 67 . 23 29 . . . . 7 . . . . 16 34 14 9 38 . Level 3 11 | . . . . . . . . . . . . . . . . . 40 . . . . . . . . . . 14 . 41 31 100 Level 4 2 | . . . . . . . . . . . . . . . . . . . . . . . . . . . . . . . 30 . Level 5 . | . . . . . . . . . . . . . . . . . . . . . . . . . . . . . . . . . High Security . | . . . . . . . . . . . . . . . . . . . . . . . . . . . . . . . . . Max Security . | . . . . . . . . . . . . . . . . . . . . . . . . . . . . . . . . . Squads Dispatched 72 | . 4 . 3 . 4 3 9 . . . . 2 3 . . 3 8 . . . . 3 . . . . 3 8 2 9 5 3 Investigation 11 | . . . 2 . . 1 2 . . . . . 2 . . . 1 . . . . . . . . . . 1 1 . 1 . Extermination 21 | . . . . . . . 3 . . . . 2 . . . 1 2 . . . . 1 . . . . 2 4 . 3 2 1 Reinforcement 25 | . 4 . 1 . 4 2 1 . . . . . 1 . . 2 2 . . . . 2 . . . . 1 1 1 2 . 1 Assault 8 | . . . . . . . . . . . . . . . . . 3 . . . . . . . . . . 1 . 1 2 1 Garrison 7 | . . . . . . . 3 . . . . . . . . . . . . . . . . . . . . 1 . 3 . . Intercept . | . . . . . . . . . . . . . . . . . . . . . . . . . . . . . . . . . Searches Triggered . | . . . . . . . . . . . . . . . . . . . . . . . . . . . . . . . . . Construction Impeded 1 | . . . . . 1 . . . . . . . . . . . . . . . . . . . . . . . . . . . Haulers Reinforced 1 | . . . . . . . . . . . . . . . . . . . . . . . . . . . . . 1 . . . Active Scanning Responses . | . . . . . . . . . . . . . . . . . . . . . . . . . . . . . . . . . Cargo Convoy Interrupts . | . . . . . . . . . . . . . . . . . . . . . . . . . . . . . . . . . Stealth | -11 -10 -10 -9 -9 -8 -8 -7 -7 -7 -7 -6 -6 -6 -6 -6 -6 -5 -5 -5 -5 -4 -4 -4 -4 -4 -3 -3 -3 -2 -2 -1 -1 --------- Run | Scr Mat Min Mat Min Mat Sto Fac Low Low Zio Pro Fac Ext Cet Arc Hub Fac Upp Upp War Pro Fac Upp Upp Zhi Pro Res Tes Res Qua Acc Com Distress Signals 33 | . 1 . 4 . 3 3 3 . . . . . . 2 . . . . . . . 1 . . . . . 1 9 . 4 2 Communications Jammed 293 | . . . . . . . . . . . . . . . . . 1 . . . . 44 . . . . 21 2 . . 205 20 Distress Signals 283 | . . . . . . . . . . . . . . . . . . . . . . 44 . . . . 21 2 . . 196 20 Times Spotted 548 | . 19 4 23 2 42 28 27 1 . . 6 12 23 17 17 21 44 3 2 2 7 16 . 4 . 1 24 36 22 30 75 40 Peak Tracking Total 16 | . 9 2 5 2 5 8 3 1 . . 3 4 3 5 2 5 9 3 2 7 5 6 . 4 . 1 5 5 5 6 10 16 Tactical Retreats 24 | . 1 . . 1 4 1 1 . . . . . . . . . 3 . . . . . . . . . 2 . 1 . 6 4 Traps | -11 -10 -10 -9 -9 -8 -8 -7 -7 -7 -7 -6 -6 -6 -6 -6 -6 -5 -5 -5 -5 -4 -4 -4 -4 -4 -3 -3 -3 -2 -2 -1 -1 ------- Run | Scr Mat Min Mat Min Mat Sto Fac Low Low Zio Pro Fac Ext Cet Arc Hub Fac Upp Upp War Pro Fac Upp Upp Zhi Pro Res Tes Res Qua Acc Com Traps Triggered 13 | . . . 2 . 1 . 3 . . . . . . . . 3 . . . . . . . . . . . . . 1 . 3 Indirectly . | . . . . . . . . . . . . . . . . . . . . . . . . . . . . . . . . . Trap Hack Attempts 85 | . . . 48 . 31 . . . . . . . 6 . . . . . . . . . . . . . . . . . . . Triggered . | . . . . . . . . . . . . . . . . . . . . . . . . . . . . . . . . . Disarmed 2 | . . . 1 . . . . . . . . . 1 . . . . . . . . . . . . . . . . . . . Reprogrammed 5 | . . . 2 . 3 . . . . . . . . . . . . . . . . . . . . . . . . . . . Reused 1 | . . . . . 1 . . . . . . . . . . . . . . . . . . . . . . . . . . . Traps Extracted 3 | . . . 2 . 1 . . . . . . . . . . . . . . . . . . . . . . . . . . . Installed . | . . . . . . . . . . . . . . . . . . . . . . . . . . . . . . . . . Triggered 9 | . . . . . 2 . . . . . . . . . . . . . . 6 1 . . . . . . . . . . . Most Traps Carried 3 | . . . 2 3 3 3 3 3 3 3 3 3 3 3 3 3 3 3 3 3 . . . . . . . . . . . . Machines | -11 -10 -10 -9 -9 -8 -8 -7 -7 -7 -7 -6 -6 -6 -6 -6 -6 -5 -5 -5 -5 -4 -4 -4 -4 -4 -3 -3 -3 -2 -2 -1 -1 ---------- Run | Scr Mat Min Mat Min Mat Sto Fac Low Low Zio Pro Fac Ext Cet Arc Hub Fac Upp Upp War Pro Fac Upp Upp Zhi Pro Res Tes Res Qua Acc Com Machines Disabled 65 | . . . . . 2 1 2 . . . . . 4 5 2 19 5 . 1 . . 5 . . . . 2 7 . 8 1 1 Max in Single Turn 17 | . . . . . 1 1 1 . . . . . 1 . 1 17 2 . 1 . . 2 . . . . 1 1 . 2 1 1 Garrison Access 7 | . . . . . . . . . . . . . . . . . 1 . . . . . . . . . . 1 3 1 1 . Network Hub 1 | . . . . . . . . . . . . . . . . 1 . . . . . . . . . . . . . . . . Machines Sabotaged . | . . . . . . . . . . . . . . . . . . . . . . . . . . . . . . . . . Garrisons Compromised . | . . . . . . . . . . . . . . . . . . . . . . . . . . . . . . . . . Overloaded Fab Kills . | . . . . . . . . . . . . . . . . . . . . . . . . . . . . . . . . . Hacking | -11 -10 -10 -9 -9 -8 -8 -7 -7 -7 -7 -6 -6 -6 -6 -6 -6 -5 -5 -5 -5 -4 -4 -4 -4 -4 -3 -3 -3 -2 -2 -1 -1 --------- Run | Scr Mat Min Mat Min Mat Sto Fac Low Low Zio Pro Fac Ext Cet Arc Hub Fac Upp Upp War Pro Fac Upp Upp Zhi Pro Res Tes Res Qua Acc Com Machines Accessed 105 | . 3 1 6 . 7 6 8 1 . . . 5 12 1 . 5 7 . . 2 . 2 . . 4 . 2 4 5 10 9 5 Terminals 64 | . 3 . 5 . 6 4 3 . . . . 3 12 1 . 5 2 . . . . 1 . . . . 2 3 . 6 6 2 Fabricators 5 | . . . . . . . 3 . . . . . . . . . 1 . . . . 1 . . . . . . . . . . Repair Stations 6 | . . . . . . 2 1 . . . . . . . . . . . . . . . . . . . . . . . 1 2 Recycling Units 4 | . . . . . 1 . . . . . . . . . . . 1 . . . . . . . . . . . 1 . . 1 Scanalyzers 10 | . . . 1 . . . . . . . . 2 . . . . 2 . . . . . . . . . . 1 . 3 1 . Garrison Access 8 | . . . . . . . 1 . . . . . . . . . 1 . . . . . . . . . . . 4 1 1 . Total Hacks 299 | . 11 1 22 . 20 17 27 1 . . . 12 21 1 . 13 29 . . 7 . 7 . . 17 . 5 13 8 36 22 9 Successful 139 | . 5 1 9 . 7 12 12 1 . . . 5 12 1 . 4 11 . . 7 . 5 . . 17 . . 2 4 15 6 3 Failed 159 | . 6 . 12 . 13 5 15 . . . . 7 9 . . 9 18 . . . . 2 . . . . 5 11 4 21 16 6 Catastrophic 40 | . . . 3 . 1 1 5 . . . . 1 2 . . 1 5 . . . . 2 . . . . 2 4 2 3 6 2 Database Lockouts 1 | . . . 1 . . . . . . . . . . . . . . . . . . . . . . . . . . . . . Manual 115 | . 11 . 11 . 16 6 12 . 1 . . 5 4 1 . 4 5 . . . . 4 . . . . 3 11 1 11 5 4 Terminals 186 | . 11 . 19 . 18 10 15 . . . . 7 21 1 . 13 6 . . . . 3 . . . . 5 11 . 24 16 6 Fabricators 21 | . . . . . . . 6 . . . . . . . . . 11 . . . . 4 . . . . . . . . . . Repair Stations 15 | . . . . . . 7 4 . . . . . . . . . . . . . . . . . . . . . . . 2 2 Recycling Units 5 | . . . . . 2 . . . . . . . . . . . 1 . . . . . . . . . . . 1 . . 1 Scanalyzers 29 | . . . 3 . . . . . . . . 5 . . . . 8 . . . . . . . . . . 2 . 9 2 . Garrison Access 17 | . . . . . . . 2 . . . . . . . . . 3 . . . . . . . . . . . 7 3 2 . Terminal Hacks 85 | . 4 1 6 . 7 4 5 1 . . . 1 11 1 . 4 1 . . 7 . 1 . . 17 . . 1 . 8 4 1 Record 6 | . . . . . . . . . . . . . . . . . . . . . . . . . 5 . . . . 1 . . Part Schematic 7 | . 2 . . . . . 1 . . . . . . . . . . . . . . . . . 4 . . . . . . . Robot Analysis 7 | . 2 . 1 . . . . . . . . . . . . . . . . . . . . . 4 . . . . . . . Prototype ID Bank 11 | . . . 1 . . . . . . . . . . . . . . . . 6 . . . . 4 . . . . . . . Open Door 16 | . . 1 . . . . . 1 . . . . 9 1 . . . . . 1 . . . . . . . . . . 3 . Level Access Points 1 | . . . . . . . . . . . . . . . . 1 . . . . . . . . . . . . . . . . Branch Access Points 6 | . . . 1 . 1 . 1 . . . . 1 . . . . 1 . . . . 1 . . . . . . . . . . Emergency Access Points 1 | . . . . . . . . . . . . . . . . . . . . . . . . . . . . . . 1 . . Terminal Index 5 | . . . 1 . . 1 1 . . . . . . . . . . . . . . . . . . . . 1 . 1 . . Alert Level 5 | . . . . . 1 . 1 . . . . . . . . 2 . . . . . . . . . . . . . 1 . . Unreport Threat 4 | . . . . . . 2 1 . . . . . . . . . . . . . . . . . . . . . . . 1 . Locate Traps 6 | . . . . . 3 1 . . . . . . . . . 1 . . . . . . . . . . . . . 1 . . Maintenance Status 1 | . . . . . . . . . . . . . . . . . . . . . . . . . . . . . . 1 . . Hauler Manifests 1 | . . . . . 1 . . . . . . . . . . . . . . . . . . . . . . . . . . . Zone Layout 7 | . . . 2 . 1 . . . . . . . 2 . . . . . . . . . . . . . . . . 2 . . Disengage Seal 1 | . . . . . . . . . . . . . . . . . . . . . . . . . . . . . . . . 1 Fabricator Hacks 11 | . . . . . . . 2 . . . . . . . . . 6 . . . . 3 . . . . . . . . . . Network Status 3 | . . . . . . . 1 . . . . . . . . . 1 . . . . 1 . . . . . . . . . . Load Schematic 3 | . . . . . . . . . . . . . . . . . 2 . . . . 1 . . . . . . . . . . Build 5 | . . . . . . . 1 . . . . . . . . . 3 . . . . 1 . . . . . . . . . . Repair Station Hacks 8 | . . . . . . 6 2 . . . . . . . . . . . . . . . . . . . . . . . . . Scan Component 4 | . . . . . . 3 1 . . . . . . . . . . . . . . . . . . . . . . . . . Repair 4 | . . . . . . 3 1 . . . . . . . . . . . . . . . . . . . . . . . . . Recycling Unit Hacks . | . . . . . . . . . . . . . . . . . . . . . . . . . . . . . . . . . Scanalyzer 13 | . . . 3 . . . . . . . . 4 . . . . 2 . . . . . . . . . . . . 3 1 . Insert Component 8 | . . . 1 . . . . . . . . 2 . . . . 1 . . . . . . . . . . . . 3 1 . Analyze 5 | . . . 2 . . . . . . . . 2 . . . . 1 . . . . . . . . . . . . . . . Garrison Access Hacks 5 | . . . . . . . . . . . . . . . . . . . . . . . . . . . . . 3 1 1 . Seal Access 5 | . . . . . . . . . . . . . . . . . . . . . . . . . . . . . 3 1 1 . Unauthorized Hacks 17 | . 1 . . . . 2 3 . . . . . 1 . . . 2 . . . . 1 . . . . . 1 1 3 . 2 Terminals 10 | . 1 . . . . 2 2 . . . . . 1 . . . . . . . . . . . . . . 1 . 2 . 1 Track 1 | . 1 . . . . . . . . . . . . . . . . . . . . . . . . . . . . . . . Assimilate 2 | . . . . . . 1 . . . . . . . . . . . . . . . . . . . . . 1 . . . . Botnet 6 | . . . . . . 1 1 . . . . . 1 . . . . . . . . . . . . . . . . 2 . 1 Operators 1 | . . . . . . . 1 . . . . . . . . . . . . . . . . . . . . . . . . . Fabricators 3 | . . . . . . . 1 . . . . . . . . . 1 . . . . 1 . . . . . . . . . . Prioritize 3 | . . . . . . . 1 . . . . . . . . . 1 . . . . 1 . . . . . . . . . . Repair Stations . | . . . . . . . . . . . . . . . . . . . . . . . . . . . . . . . . . Recycling Units 3 | . . . . . . . . . . . . . . . . . 1 . . . . . . . . . . . 1 . . 1 Recyclers 3 | . . . . . . . . . . . . . . . . . 1 . . . . . . . . . . . 1 . . 1 Scanalyzers 1 | . . . . . . . . . . . . . . . . . . . . . . . . . . . . . . 1 . . Researchers 1 | . . . . . . . . . . . . . . . . . . . . . . . . . . . . . . 1 . . Garrison Access . | . . . . . . . . . . . . . . . . . . . . . . . . . . . . . . . . . Data Cores Recovered . | . . . . . . . . . . . . . . . . . . . . . . . . . . . . . . . . . Used . | . . . . . . . . . . . . . . . . . . . . . . . . . . . . . . . . . Hacking Detections 83 | . 3 . 6 . 6 6 7 . . . . 5 8 . . 5 6 . . . . 1 . . . . 2 4 2 10 8 4 Full Trace Events 8 | . . . 2 . . 1 1 . . . . . 1 . . . 1 . . . . . . . . . . 1 . . 1 . Feedback Events . | . . . . . . . . . . . . . . . . . . . . . . . . . . . . . . . . . Feedback Blocked . | . . . . . . . . . . . . . . . . . . . . . . . . . . . . . . . . . Robot Schematics Acquired 4 | . . . . . . . . . . 3 . . . . . . . . . . . . . . . . . . . 1 . . Robots Built 4 | . . . . . . . 4 . . . . . . . . . . . . . . . . . . . . . . . . . Authchips . | . . . . . . . . . . . . . . . . . . . . . . . . . . . . . . . . . Time 134 | . . . . . . . 134 . . . . . . . . . . . . . . . . . . . . . . . . . Total Robot Build Rating 16 | . . . . . . . 16 . . . . . . . . . . . . . . . . . . . . . . . . . Part Schematics Acquired 27 | . 2 . 1 . . . 1 . . 14 . 1 . . . . 1 . . . . . . . 4 . . 2 . 1 . . Parts Built 5 | . . . . . . . . . . . . . . . . . 4 . . . . 1 . . . . . . . . . . Authchips 2 | . . . . . . . . . . . . . . . . . 1 . . . . 1 . . . . . . . . . . Time 319 | . . . . . . . . . . . . . . . . . 272 . . . . 47 . . . . . . . . . . Total Part Build Rating 29 | . . . . . . . . . . . . . . . . . 24 . . . . 5 . . . . . . . . . . Parts Repaired 4 | . . . . . . 3 1 . . . . . . . . . . . . . . . . . . . . . . . . . Time 139 | . . . . . . 120 19 . . . . . . . . . . . . . . . . . . . . . . . . . Parts Recycled . | . . . . . . . . . . . . . . . . . . . . . . . . . . . . . . . . . Recycled Matter . | . . . . . . . . . . . . . . . . . . . . . . . . . . . . . . . . . Retrieved Matter . | . . . . . . . . . . . . . . . . . . . . . . . . . . . . . . . . . Retrieved Components . | . . . . . . . . . . . . . . . . . . . . . . . . . . . . . . . . . Parts Scanalyzed 4 | . . . 1 . . . . . . . . 2 . . . . 1 . . . . . . . . . . . . . . . Part Schematics Acquired 3 | . . . 1 . . . . . . . . 1 . . . . 1 . . . . . . . . . . . . . . . Parts Damaged . | . . . . . . . . . . . . . . . . . . . . . . . . . . . . . . . . . Bothacking | -11 -10 -10 -9 -9 -8 -8 -7 -7 -7 -7 -6 -6 -6 -6 -6 -6 -5 -5 -5 -5 -4 -4 -4 -4 -4 -3 -3 -3 -2 -2 -1 -1 ------------ Run | Scr Mat Min Mat Min Mat Sto Fac Low Low Zio Pro Fac Ext Cet Arc Hub Fac Upp Upp War Pro Fac Upp Upp Zhi Pro Res Tes Res Qua Acc Com Used RIF Installer . | . . . . . . . . . . . . . . . . . . . . . . . . . . . . . . . . . Robots Hacked 9 | . . . . . 2 . . 1 1 2 . . 1 . 2 . . . . . . . . . . . . . . . . . Non-combat 6 | . . . . . 2 . . 1 1 . . . . . 2 . . . . . . . . . . . . . . . . . Combat 3 | . . . . . . . . . . 2 . . 1 . . . . . . . . . . . . . . . . . . . Robot Hacks Applied 13 | . . . . . 2 . . 1 1 3 . . 1 1 4 . . . . . . . . . . . . . . . . . parse_system 9 | . . . . . 1 . . 1 1 3 . . 1 1 1 . . . . . . . . . . . . . . . . . no_distress 1 | . . . . . 1 . . . . . . . . . . . . . . . . . . . . . . . . . . . check_alert 3 | . . . . . . . . . . . . . . . 3 . . . . . . . . . . . . . . . . . Relay Couplers Released 9 | . . . . . . . . . . . . . . . . . 2 . . . . . . . . . . 1 6 . . . Machine Destruction 5 | . . . . . . . . . . . . . . . . . 2 . . . . . . . . . . 1 2 . . . Programmers 4 | . . . . . . . . . . . . . . . . . . . . . . . . . . . . . 4 . . . Fabnet Peak Effective % . | . . . . . . . . . . . . . . . . . . . . . . . . . . . . . . . . . Robots Rewired 4 | . . . . . . . . . . . . . 4 . . . . . . . . . . . . . . . . . . . Allies Hacked 1 | . . . . . . . . . . . . . 1 . . . . . . . . . . . . . . . . . . . Hacks Repelled . | . . . . . . . . . . . . . . . . . . . . . . . . . . . . . . . . . Allies | -11 -10 -10 -9 -9 -8 -8 -7 -7 -7 -7 -6 -6 -6 -6 -6 -6 -5 -5 -5 -5 -4 -4 -4 -4 -4 -3 -3 -3 -2 -2 -1 -1 -------- Run | Scr Mat Min Mat Min Mat Sto Fac Low Low Zio Pro Fac Ext Cet Arc Hub Fac Upp Upp War Pro Fac Upp Upp Zhi Pro Res Tes Res Qua Acc Com Total Allies 23 | . . 1 . . . . 4 . . . . . 17 . . . . . . . . . . . . . . 1 . . . . Largest Group 10 | . . 1 1 . . . 4 . . . . . 10 8 3 . . . . . . . . . . . . 1 . . . . Highest-Rated Group 381 | . . 31 31 . . . 48 . . . . . 381 375 231 . . . . . . . . . . . . 10 . . . . Highest-Rated Ally 159 | . . 31 31 . . . 12 . . . . . 159 153 153 . . . . . . . . . . . . 10 . . . . Total Orders 4 | . . . . . . . . . . . . . . . . . . . . . . . 3 . . 1 . . . . . . EXPLORE 2 | . . . . . . . . . . . . . . . . . . . . . . . 1 . . 1 . . . . . . RETURN 2 | . . . . . . . . . . . . . . . . . . . . . . . 2 . . . . . . . . . Ally Attacks 254 | . . . 2 . . . 24 . . . . . 128 93 7 . . . . . . . . . . . . . . . . . Total Damage 3892 | . . . 40 . . . 268 . . . . . 2184 1326 74 . . . . . . . . . . . . . . . . . Kills 33 | . . . 1 . . . 1 . . . . . 16 13 2 . . . . . . . . . . . . . . . . . Allies Corrupted . | . . . . . . . . . . . . . . . . . . . . . . . . . . . . . . . . . Allies Melted 1 | . . . . . . . . . . . . . . . . . . . . . . . . . . . . . 1 . . . Intel | -11 -10 -10 -9 -9 -8 -8 -7 -7 -7 -7 -6 -6 -6 -6 -6 -6 -5 -5 -5 -5 -4 -4 -4 -4 -4 -3 -3 -3 -2 -2 -1 -1 ------- Run | Scr Mat Min Mat Min Mat Sto Fac Low Low Zio Pro Fac Ext Cet Arc Hub Fac Upp Upp War Pro Fac Upp Upp Zhi Pro Res Tes Res Qua Acc Com Robot Analysis Total 7 | . 2 . 1 . . . . . . . . . . . . . . . . . . . . . 4 . . . . . . . Derelict Logs Recovered 9 | . . 1 . 1 . . . 1 1 1 1 . . . . . . 1 1 . 1 . . . . . . . . . . . Drone Launches 3 | . . . . . . . . . . . . . . . . . . . . . . . 2 . . 1 . . . . . . Drone Recoveries 3 | . . . . . . . . . . . . . . . . . . . . . . . 2 . . 1 . . . . . . Exploration | -11 -10 -10 -9 -9 -8 -8 -7 -7 -7 -7 -6 -6 -6 -6 -6 -6 -5 -5 -5 -5 -4 -4 -4 -4 -4 -3 -3 -3 -2 -2 -1 -1 ------------- Run | Scr Mat Min Mat Min Mat Sto Fac Low Low Zio Pro Fac Ext Cet Arc Hub Fac Upp Upp War Pro Fac Upp Upp Zhi Pro Res Tes Res Qua Acc Com Turns Passed 27821 | 60 346 423 904 445 1604 967 1779 544 537 1362 473 615 1396 362 629 1078 1720 439 366 891 449 689 705 531 361 499 794 1381 2169 981 1844 478 Spaces Moved 13490 | 40 228 211 399 262 728 293 840 329 311 863 290 309 721 170 176 495 783 245 203 508 224 350 413 297 206 210 296 520 1177 413 709 271 Core 103 | 40 51 . . . . . . . . . . . . . . . . . . . . . . . . . . . 1 . . 11 Treads 11439 | . . . 257 262 728 293 840 329 311 863 290 309 721 170 176 495 783 245 203 508 224 350 413 297 206 99 142 186 971 413 353 2 Legs 551 | . 177 211 142 . . . . . . . . . . . . . . . . . . . . . . . . . 21 . . . Wheels 1397 | . . . . . . . . . . . . . . . . . . . . . . . . . . 111 154 334 184 . 356 258 Hover . | . . . . . . . . . . . . . . . . . . . . . . . . . . . . . . . . . Flight . | . . . . . . . . . . . . . . . . . . . . . . . . . . . . . . . . . Fastest Speed 50 | 50 100 120 160 160 148 148 155 156 156 156 156 156 156 160 160 160 160 160 160 160 160 160 160 160 160 160 152 148 146 165 112 50 Average Speed 160 | 73 117 161 171 160 154 153 157 156 156 156 156 156 157 160 160 160 164 160 160 160 160 160 160 160 160 174 168 188 166 165 176 116 Slowest Speed 2150 | 100 200 190 240 160 160 225 235 156 156 156 156 156 160 240 160 160 243 160 160 160 160 160 160 160 160 240 232 490 2150 165 400 200 Overloaded Moves . | . . . . . . . . . . . . . . . . . . . . . . . . . . . . . . . . . Propulsion Burnouts . | . . . . . . . . . . . . . . . . . . . . . . . . . . . . . . . . . Robots Hopped . | . . . . . . . . . . . . . . . . . . . . . . . . . . . . . . . . . Cave-ins Triggered 3 | . . . . . . . . . . . . . . . . 1 . . . . . . . . . 1 1 . . . . . Teleports 1 | . . . . . . . . . . . . . . . . . . . . . . . . . . . . 1 . . . . Exploration Rate (%) 47 | 4 45 36 42 72 60 51 26 56 51 85 56 9 76 74 90 47 15 49 42 71 43 11 61 57 61 76 10 83 33 41 18 13 Regions Visited 32 Branch Regions 22 Pre-discovered Areas 7 | . . 1 . 1 . . . . . 1 . . . . . . . . 1 . . . . . 3 . . . . . . . Known Exits Taken 11 | . . . 1 . 1 . 1 . . . 1 1 . . . 1 1 . . . . 1 . . . . 1 1 . 1 . . Unknown Exits Taken 21 | 1 1 1 . 1 . 1 . 1 1 1 . . 1 1 1 . . 1 1 1 1 . 1 1 1 1 . . 1 . 1 . Scrap Searched 22 | . . 1 . 1 . . . 2 3 2 4 . . . . . . 2 . . 2 . 4 1 . . . . . . . . Spaces Dug 159 | . . . . . 1 . 8 . 7 . . 4 . . . 10 2 6 9 9 5 4 8 12 . 11 16 16 18 3 10 . Terrain Destroyed 1062 | . . . 2 . 13 3 9 . 8 . 56 6 2 1 4 192 49 8 12 9 27 104 9 37 . 11 73 213 26 92 78 18 Melee 27 | . . . . . . . 7 . 1 . . 3 . . . 4 . . . . . . . . . . 3 7 . . 2 . Projectile 296 | . . . 2 . 13 3 2 . 7 . 1 3 2 1 4 30 20 8 12 9 8 13 9 11 . 11 30 19 14 17 29 18 AOE 739 | . . . . . . . . . . . 55 . . . . 158 29 . . . 19 91 . 26 . . 40 187 12 75 47 . Terrain Rammed . | . . . . . . . . . . . . . . . . . . . . . . . . . . . . . . . . . Walls Destroyed . | . . . . . . . . . . . . . . . . . . . . . . . . . . . . . . . . . Machines Disabled . | . . . . . . . . . . . . . . . . . . . . . . . . . . . . . . . . . Actions | -11 -10 -10 -9 -9 -8 -8 -7 -7 -7 -7 -6 -6 -6 -6 -6 -6 -5 -5 -5 -5 -4 -4 -4 -4 -4 -3 -3 -3 -2 -2 -1 -1 --------- Run | Scr Mat Min Mat Min Mat Sto Fac Low Low Zio Pro Fac Ext Cet Arc Hub Fac Upp Upp War Pro Fac Upp Upp Zhi Pro Res Tes Res Qua Acc Com Total 17476 | 56 270 264 560 278 1037 693 1147 343 348 877 301 389 887 222 490 652 1034 272 222 571 286 419 444 331 229 320 462 757 1323 597 1036 359 Wait 1645 | . 4 23 41 9 99 296 127 . 17 . 2 17 73 5 263 74 79 7 3 13 34 16 18 17 . 89 59 55 23 89 73 20 Move 13457 | 39 227 210 398 261 727 292 839 328 310 862 289 308 720 169 175 494 782 244 202 507 223 349 412 296 205 208 294 519 1176 413 708 271 Hop . | . . . . . . . . . . . . . . . . . . . . . . . . . . . . . . . . . Pick Up 212 | 5 10 4 13 1 19 8 21 1 1 3 . 5 3 8 4 3 18 3 . 11 . 5 1 . 2 2 9 18 12 6 16 . Fast Attach 185 | 3 1 . 5 . 4 4 2 . . . . 6 3 3 1 6 19 . . 4 2 6 . 1 5 1 8 19 20 6 39 17 Attach 107 | 2 1 1 2 1 8 2 11 . . . . 5 1 2 1 4 11 2 . 4 . 4 1 . 1 1 7 13 5 4 11 2 Detach 43 | . . . 4 . 2 1 2 . . . . 4 1 1 . 2 2 . . 2 . 2 . . . . 1 6 3 1 7 2 Swap 205 | . 3 5 8 . 20 6 24 2 4 4 2 9 18 5 4 8 11 1 2 3 4 4 2 2 1 1 4 11 12 10 11 4 Drop 239 | . 3 4 10 1 26 6 20 1 2 4 . 9 13 11 5 2 17 1 . 13 2 3 . 1 6 . 8 16 33 7 11 4 Fire 1191 | 7 21 17 31 5 99 78 84 10 12 . 8 23 42 17 33 55 92 14 15 10 21 30 10 14 9 11 66 72 39 59 149 38 Melee 100 | . . . . . 2 . 16 1 2 4 . 3 6 1 4 4 3 . . 4 . . . . . 6 5 28 . . 10 1 Ram 1 | . . . . . . . . . . . . . . . . . . . . . . . . . . . . . . . 1 . Kick . | . . . . . . . . . . . . . . . . . . . . . . . . . . . . . . . . . Crush 2 | . . . . . . . 1 . . . . . 1 . . . . . . . . . . . . . . . . . . . Escape Stasis 4 | . . . . . . . . . . . . . . . . . . . . . . . . . . 1 1 . . 2 . . Rewire . | . . . . . . . . . . . . . . . . . . . . . . . . . . . . . . . . . Trap 85 | . . . 48 . 31 . . . . . . . 6 . . . . . . . . . . . . . . . . . . . Miscellaneous . | . . . . . . . . . . . . . . . . . . . . . . . . . . . . . . . . . Route ------- -11/Scrapyard -10/Materials -10/Mines -9/Materials (discovered 3 exits: *Mat / *Min x2) -9/Mines (discovered 3 exits: *Mat x2 / [*Zio]) -8/Materials (discovered 3 exits: *Fac / *Sto x2) -8/Storage -7/Factory (discovered 3 exits: *Fac / *Low x2) -7/Lower Caves -7/Lower Caves -7/Zion -6/Proximity Caves -6/Factory (discovered 5 exits: *Fac / Low x2 / *Ext x2) -6/Extension (discovered 2 exits: *Fac / *Cet) -6/Cetus (discovered 2 exits: *Fac / [*Arc]) -6/Archives (discovered 3 exits: *Fac / *Hub x2) -6/Hub_04(d) (discovered 4 exits: *Fac x4) -5/Factory (discovered 2 exits: *Upp x2) -5/Upper Caves -5/Upper Caves -5/Warlord -4/Proximity Caves -4/Factory (discovered 3 exits: *Upp x2 / Arm) -4/Upper Caves -4/Upper Caves -4/Zhirov -3/Proximity Caves -3/Research -3/Testing -2/Research (discovered 3 exits: *Acc x2 / *Qua) -2/Quarantine -1/Access -1/Command History --------- Turn | Location | Event 11 | -11/Scrapyard | Discovered new exit (range 15) 61 | -11/Scrapyard | Entered Materials 304 | -10/Materials | Build established: Mutant 382 | -10/Materials | Discovered new exit (range 16) 407 | -10/Materials | Entered Mines 492 | -10/Mines | Met a Derelict who couldn't figure out how to use a Trap Extractor 665 | -10/Mines | A weapon hastily lodged in a ceiling crevice suddenly fell to the ground 693 | -10/Mines | Learned location of Zion (-7) 821 | -10/Mines | Received a Mining Laser from a helpful Derelict 822 | -10/Mines | Discovered new exit (range 3) 830 | -10/Mines | Entered Materials 830 | -9/Materials | Accompanied by 1 ally 830 | -9/Materials | Evolved 2 slots: Propulsion x1, Utility x1 1041 | -9/Materials | Central database locked down 1183 | -9/Materials | Identified exit to Mines 1450 | -9/Materials | Discovered new exit (range 15) 1734 | -9/Materials | Entered Mines 1950 | -9/Mines | Build established: Scavenger-Mutant 1951 | -9/Mines | Found a hidden stash of uninstalled traps 2028 | -9/Mines | Discovered new exit (range 7) 2055 | -9/Mines | Discovered new exit (range 14) 2087 | -9/Mines | A Derelict revealed a hidden shortcut to a safe place 2179 | -9/Mines | Entered Materials 2179 | -8/Materials | Evolved 2 slots: Propulsion x1, Utility x1 2180 | -8/Materials | Discovered new exit (range 15) 2376 | -8/Materials | Identified exit to Storage 3223 | -8/Materials | Build established: Mutant 3236 | -8/Materials | Discovered new exit (range 15) 3783 | -8/Materials | Entered Storage 3945 | -8/Storage | Repaired Med. Treads 3985 | -8/Storage | Repaired Adv. Treads 4470 | -8/Storage | Core integrity fell below 50% 4518 | -8/Storage | Repaired Adv. Treads 4549 | -8/Storage | Discovered new exit (range 16) 4750 | -8/Storage | Entered Factory 4750 | -7/Factory | Evolved 2 slots: Utility x2 4839 | -7/Factory | Fabricated S-27 Virus? 5079 | -7/Factory | Build established: Scavenger-Mutant 5280 | -7/Factory | Discovered new exit (range 16) 5333 | -7/Factory | Identified exit to Factory 5404 | -7/Factory | Garrison activated, responded to threat 5684 | -7/Factory | Identified exit to Lower Caves 5876 | -7/Factory | Lost 3 parts (1n1u1w) 6300 | -7/Factory | Repaired Reactive Plating? 6529 | -7/Factory | Entered Lower Caves 6701 | -7/Lower Caves | Learned Factory trap positions 7048 | -7/Lower Caves | Discovered new exit (range 11) 7073 | -7/Lower Caves | Entered another Lower Caves area 7098 | -7/Lower Caves | Encountered a Warlord checkpoint 7112 | -7/Lower Caves | Learned Factory stockpile data 7292 | -7/Lower Caves | Spotted B-75 Beast 7438 | -7/Lower Caves | Discovered new exit (range 14) 7511 | -7/Lower Caves | Acquired the password to a Derelict Tinkerer's latest research 7531 | -7/Lower Caves | Found Prototype Special Weapon 7610 | -7/Lower Caves | Entered Zion 7660 | -7/Zion | System corruption cleaned by Quarantine Array 7682 | -7/Zion | Found CR-A16's Pointy Stick 7699 | -7/Zion | Acquired unknown access codes intercepted by a Zionite 7785 | -7/Zion | Discovered new exit (range 11) 7796 | -7/Zion | Visited the Megawrench Repair Shop 7797 | -7/Zion | Megawrench repaired 12 parts 8126 | -7/Zion | Learned Factory terminal intel 8663 | -7/Zion | Learned location of Data Miner (-6) 8675 | -7/Zion | Loaded intel: 4 derelict terminal locations 8972 | -7/Zion | Entered Proximity Caves 9335 | -6/Proximity Caves | Learned Factory terminal intel 9408 | -6/Proximity Caves | Discovered exit to Factory (range 11) 9445 | -6/Proximity Caves | Entered Factory 9445 | -6/Factory | Evolved 2 slots: Utility x1, Weapon x1 9446 | -6/Factory | Loaded intel: 87 trap records 9448 | -6/Factory | Loaded intel: 28 terminal locations 9563 | -6/Factory | Discovered new exit (range 16) 9598 | -6/Factory | Identified exit to Factory 9670 | -6/Factory | Identified exit to Lower Caves 9670 | -6/Factory | Identified exit to Extension 9964 | -6/Factory | Identified Molecular Deconstructor 10060 | -6/Factory | Entered Extension 10409 | -6/Extension | Rescued a captive Derelict 10440 | -6/Extension | Rescued a captive Derelict 10441 | -6/Extension | Rescued a captive Derelict 10463 | -6/Extension | Rescued a captive Derelict 10466 | -6/Extension | Build established: Scavenger-Tank 10477 | -6/Extension | Rescued a captive Derelict 10502 | -6/Extension | Rescued a captive Derelict 10503 | -6/Extension | Rescued a captive Derelict 10542 | -6/Extension | Rescued a captive Derelict 10794 | -6/Extension | Spotted B-75 Beast 10807 | -6/Extension | Destroyed B-75 Beast 10820 | -6/Extension | Spotted B-75 Beast 10840 | -6/Extension | Destroyed B-75 Beast 10885 | -6/Extension | Rescued a captive Derelict 10957 | -6/Extension | Rescued a captive Derelict 10958 | -6/Extension | Rescued a captive Derelict 11006 | -6/Extension | Rescued a captive Derelict 11079 | -6/Extension | Rescued A7 11372 | -6/Extension | Discovered new exit (range 16) 11374 | -6/Extension | Discovered exit to Factory (range 15) 11456 | -6/Extension | Entered Cetus 11456 | -6/Cetus | Accompanied by 8 allies (A7) 11461 | -6/Cetus | Acquired a Cetus Manufacturing Module code from A7 11479 | -6/Cetus | Spotted Cetus Guard 11479 | -6/Cetus | Spotted Cetus Guard 11482 | -6/Cetus | Destroyed Cetus Guard 11483 | -6/Cetus | Spotted Cetus Guard 11487 | -6/Cetus | Spotted Cetus Guard 11489 | -6/Cetus | Allies destroyed Cetus Guard 11500 | -6/Cetus | Allies destroyed Cetus Guard 11503 | -6/Cetus | Allies destroyed Cetus Guard 11563 | -6/Cetus | Cetus Manufacturing Module disabled 11611 | -6/Cetus | Failed to start Cetus Manufacturing Module 11623 | -6/Cetus | Escorted A7 to Cetus Mainframe 11643 | -6/Cetus | Discovered new exit (range 15) 11679 | -6/Cetus | Spotted Cetus Guard 11679 | -6/Cetus | Spotted Cetus Guard 11682 | -6/Cetus | Spotted Cetus Guard 11682 | -6/Cetus | Spotted Cetus Guard 11682 | -6/Cetus | Allies destroyed Cetus Guard 11685 | -6/Cetus | Allies destroyed Cetus Guard 11691 | -6/Cetus | Destroyed Cetus Guard 11696 | -6/Cetus | Allies destroyed Cetus Guard 11706 | -6/Cetus | Discovered exit to Factory (range 16) 11715 | -6/Cetus | Met Revision 17 11818 | -6/Cetus | Entered Archives 11818 | -6/Archives | Accompanied by 3 allies (A7) 11823 | -6/Archives | Received a hacking code to weaken MAIN.C 11936 | -6/Archives | Discovered new exit (range 16) 12035 | -6/Archives | Discovered new exit (range 16) 12094 | -6/Archives | Discovered exit to Factory (range 15) 12215 | -6/Archives | Build established: Scavenger-Mutant 12447 | -6/Archives | Entered Hub_04(d) 12447 | -6/Hub_04(d) | Discovered exit to Factory (range 11) 12533 | -6/Hub_04(d) | Crushed by falling debris 12678 | -6/Hub_04(d) | Spotted B-75 Beast 13277 | -6/Hub_04(d) | Network Hub disabled 13281 | -6/Hub_04(d) | Spotted Lightning 13296 | -6/Hub_04(d) | Spotted Lightning 13306 | -6/Hub_04(d) | Spotted Lightning 13313 | -6/Hub_04(d) | System corruption reached 10% 13329 | -6/Hub_04(d) | Destroyed Lightning 13344 | -6/Hub_04(d) | Destroyed Lightning 13361 | -6/Hub_04(d) | Destroyed Lightning 13375 | -6/Hub_04(d) | Found Prototype Device 13375 | -6/Hub_04(d) | Identified Exp. EM Disruption Field 13384 | -6/Hub_04(d) | Found Prototype Processor 13384 | -6/Hub_04(d) | Identified Exp. Targeting Computer 13525 | -6/Hub_04(d) | Entered Factory 13525 | -5/Factory | Evolved 2 slots: Power x1, Utility x1 13526 | -5/Factory | Loaded intel: 26 terminal locations 13603 | -5/Factory | Build established: Scavenger-Tank 13710 | -5/Factory | Discovered new exit (range 5) 13910 | -5/Factory | Fabricated Com. HERF Cannon? 14099 | -5/Factory | Discovered new exit (range 13) 14125 | -5/Factory | First assault squad dispatched 14160 | -5/Factory | Found Powered Armor 14372 | -5/Factory | Lost 6 parts (1p4u1w) 14562 | -5/Factory | System corruption reached 10% 14599 | -5/Factory | Lost 5 parts (1p3u1w) 14753 | -5/Factory | Fabricated Powered Armor (x2) 14860 | -5/Factory | Identified exit to Upper Caves 15065 | -5/Factory | Build established: Scavenger-Mutant 15138 | -5/Factory | Fabricated Centrium Heavy Treads? 15245 | -5/Factory | Entered Upper Caves 15247 | -5/Upper Caves | Attracted the attention of an 0b10 checkpoint 15604 | -5/Upper Caves | Learned Factory terminal intel 15675 | -5/Upper Caves | Discovered new exit (range 6) 15684 | -5/Upper Caves | Entered another Upper Caves area 15990 | -5/Upper Caves | Discovered new exit (range 5) 16050 | -5/Upper Caves | Entered Warlord 16089 | -5/Warlord | Discovered new exit (range 15) 16182 | -5/Warlord | System corruption cleaned by Quarantine Array 16468 | -5/Warlord | Met Warlord 16481 | -5/Warlord | Warlord's base attacked by MAIN.C 16514 | -5/Warlord | Found Prototype Hackware 16525 | -5/Warlord | Found Prototype Device 16525 | -5/Warlord | Identified System Purifier 16533 | -5/Warlord | Found Prototype Device 16533 | -5/Warlord | Identified Exp. Cloaking Device 16542 | -5/Warlord | Found Prototype Reactor 16612 | -5/Warlord | Found Prototype Special Weapon 16615 | -5/Warlord | Found Prototype Special Weapon 16618 | -5/Warlord | Found Prototype Special Weapon 16621 | -5/Warlord | Found Prototype Special Weapon 16831 | -5/Warlord | Warlord forces counterattacked 16876 | -5/Warlord | Opened side exit 16941 | -5/Warlord | Entered Proximity Caves 16964 | -4/Proximity Caves | Identified RU-N14's Throwing Claymores v3 (x4) 17299 | -4/Proximity Caves | Learned 8 Research zone layouts 17379 | -4/Proximity Caves | Discovered new exit (range 8) 17390 | -4/Proximity Caves | Entered Factory 17390 | -4/Factory | Evolved 2 slots: Utility x2 17391 | -4/Factory | Loaded intel: 26 terminal locations 17443 | -4/Factory | Identified exit to Upper Caves 17443 | -4/Factory | Identified exit to Armory 17686 | -4/Factory | Fabricated Enh. Optical Array (x1) 17826 | -4/Factory | Lost 3 parts (1n1u1w) 18079 | -4/Factory | Entered Upper Caves 18697 | -4/Upper Caves | Discovered new exit (range 13) 18784 | -4/Upper Caves | Entered another Upper Caves area 19297 | -4/Upper Caves | Discovered new exit (range 10) 19315 | -4/Upper Caves | Entered Zhirov 19315 | -4/Zhirov | Discovered new exit (range 3) 19346 | -4/Zhirov | Met Zhirov 19376 | -4/Zhirov | Learned location of Quarantine (-2) 19376 | -4/Zhirov | Learned location of Testing (-3) 19376 | -4/Zhirov | Learned location of Command (-1) 19391 | -4/Zhirov | Zhirov requested help retrieving the SGEMP Prototype 19415 | -4/Zhirov | Found Alien Artifact 19415 | -4/Zhirov | Identified Integrated Reactor 19415 | -4/Zhirov | Installed Integrated Reactor, increased core energy generation (+10) 19436 | -4/Zhirov | Found Alien Artifact 19676 | -4/Zhirov | Entered Proximity Caves 19883 | -3/Proximity Caves | Spotted B-86 Titan 19906 | -3/Proximity Caves | Revealed the true nature of CR-A16's Pointy Stick 19909 | -3/Proximity Caves | Destroyed B-86 Titan 19938 | -3/Proximity Caves | Lost 3 parts (1n2u) 20160 | -3/Proximity Caves | Crushed by falling debris 20161 | -3/Proximity Caves | System corruption reached 10% 20163 | -3/Proximity Caves | Discovered new exit (range 3) 20175 | -3/Proximity Caves | Entered Research 20175 | -3/Research | Evolved 2 slots: Propulsion x2 20197 | -3/Research | Build established: Mutant 20351 | -3/Research | Crushed by falling debris 20892 | -3/Research | Discovered new exit (range 4) 20904 | -3/Research | Identified exit to Testing 20969 | -3/Research | Entered Testing 21018 | -3/Testing | Found Prototype Energy Cannon 21249 | -3/Testing | Lost 3 parts (1p1n1u) 21283 | -3/Testing | System corruption reached 10% 21367 | -3/Testing | Spotted PY-C6JKN4NVSU 21418 | -3/Testing | Destroyed PY-C6JKN4NVSU 21442 | -3/Testing | Lost 8 parts (1p3n2u2w) 21463 | -3/Testing | Identified Vortex Chain Reactor 21577 | -3/Testing | Lost 4 parts (1n2u1w) 21729 | -3/Testing | Core integrity fell below 50% 21734 | -3/Testing | Identified Transdimensional Reconstructor 21734 | -3/Testing | Warped through subspace 22262 | -3/Testing | Discovered new exit (range 22) 22349 | -3/Testing | Identified exit to Research 22350 | -3/Testing | Entered Research 22350 | -2/Research | Warlord forces began assault on 0b10 22350 | -2/Research | Evolved 2 slots: Power x1, Utility x1 22373 | -2/Research | Build established: Scavenger-Mutant 22460 | -2/Research | Research machine network offline 22672 | -2/Research | Met up with Warlord 22791 | -2/Research | Borebot progress halted 22794 | -2/Research | Build established: Scavenger-Gunner 22797 | -2/Research | Borebot progress halted 22880 | -2/Research | Borebot progress halted 22900 | -2/Research | Found Prototype Processor 22900 | -2/Research | Identified Exp. Core Analyzer 22907 | -2/Research | Found Exp. Core Analyzer 22974 | -2/Research | Discovered new exit (range 17) 22999 | -2/Research | Spotted Striker 23009 | -2/Research | Identified exit to Access 23076 | -2/Research | Spotted Striker 23331 | -2/Research | Build established: Generator-Mutant 23400 | -2/Research | Spotted Executioner 23488 | -2/Research | Warlord invited to help at Command 23930 | -2/Research | Warlord destroyed during the assault 23952 | -2/Research | Build established: Scavenger-Mutant 24051 | -2/Research | Discovered exit to Access (range 5) 24295 | -2/Research | Spotted Executioner 24298 | -2/Research | Spotted Executioner 24310 | -2/Research | Destroyed Executioner 24320 | -2/Research | Destroyed Executioner 24507 | -2/Research | Discovered new exit (range 6) 24519 | -2/Research | Entered Quarantine 24532 | -2/Quarantine | Found Alien Artifact 24592 | -2/Quarantine | Found Alien Artifact 24605 | -2/Quarantine | Found Alien Artifact 24729 | -2/Quarantine | Identified Terrabomb (x2) 24896 | -2/Quarantine | Found Alien Artifact 24896 | -2/Quarantine | Identified Phase Redirector 24968 | -2/Quarantine | Garrison activated, responded to threat 24980 | -2/Quarantine | Scanned by Researcher 25062 | -2/Quarantine | First assault squad dispatched 25139 | -2/Quarantine | Discovered exit to Access (range 15) 25142 | -2/Quarantine | Destroyed 10 combat bots 25185 | -2/Quarantine | Found Antimissile System 25188 | -2/Quarantine | Found Antimissile System 25240 | -2/Quarantine | Lost 4 parts (4u) 25263 | -2/Quarantine | Build established: Generator-Gunner 25368 | -2/Quarantine | Found Alien Impact Weapon 25392 | -2/Quarantine | Identified Subatomic Replicator 25392 | -2/Quarantine | Identified Core Stripper 25478 | -2/Quarantine | Identified Imp. Potential Cannon 25500 | -2/Quarantine | Entered Access 25500 | -1/Access | Evolved 2 slots: Propulsion x1, Utility x1 26058 | -1/Access | Identified System Mapper 26153 | -1/Access | Lost 9 parts (2p3n2u2w) 26397 | -1/Access | System corruption reached 10% 26500 | -1/Access | First assault squad dispatched 26532 | -1/Access | Destroyed 8 combat bots 26798 | -1/Access | Lost 3 parts (2p1u) 26934 | -1/Access | Lost 8 parts (1p3n2u2w) 26961 | -1/Access | Found Hvy. Reactive Plating 27058 | -1/Access | Destroyed 8 combat bots 27337 | -1/Access | Discovered new exit (range 7) 27344 | -1/Access | Entered Command 27623 | -1/Command | Disengaged cave seal 27623 | -1/Command | Wild derelicts emerged from the dark tunnel 27623 | -1/Command | First assault squad dispatched 27793 | -1/Command | Spotted M Guard 27794 | -1/Command | Spotted M Guard 27794 | -1/Command | Spotted Combat Programmer 27795 | -1/Command | Spotted Combat Programmer 27798 | -1/Command | Core integrity fell below 50% 27808 | -1/Command | Core integrity fell below 20% 27808 | -1/Command | System corruption reached 30% 27822 | -1/Command | Destroyed by M Guard with Graviton Cannon Last Messages --------------- 27813_ W0-08F(p) destroyed. 27813_ 58-3LS(g) destroyed. 27813_ EMDS Slug penetrates W3-7SP(p). 27813_ W3-7SP(p) resets SD-Q8V(g), system corruption cleaned. 27814_ Penetrated by HV Slug. 27814_ AM-YFK(M) destroyed. 27815_ Acquired 4 matter. 27815_ EMDS Slug penetrates W3-7SP(p). 27815_ W3-7SP(p) destroyed. 27815_ EMDS Slug penetrates VT-GKH(g). 27815_ Acquired 5 matter. 27816_ SD-Q8V(g) destroyed. 27816_ VK-828(h) destroyed. 27816_ JF-TOK(h) destroyed. 27817_ The unstable cave ceiling collapses. 27818_ EMDS Slug penetrates VT-GKH(g). 27818_ VT-GKH(g) destroyed. 27818_ EMDS Slug penetrates ZC-XVC(M). 27818_ ZC-XVC(M) destroyed. 27820_ Penetrated by EMDS Slug. Map ----- +----------------------------------------------------+ | ?????????????????????????????????????????# # % | | ?????????????????????????????????????????# /%! % | | ?????????????????????????????????????????#! #| | | ????????????????????????????????????????##! / | | ???????????????????????????????????????##"/####### | | ???????????????????????????????????????# %%! | | ???????????????????????????????????????# | | | ???????????????????????????????????????# ![ | | ???????????????????????????????????????# !!!%= | | ??????????????????????????????????????## !!==% | | ??????????????????????????????????????#" !! %! | | ??????????????????????????????????????##! ==! | | ???????????????????????????????????????######"##=# | | ????????????????????????????????????????????####%# | | ????????????????????????????????????????????? #!% | | ?????????????????????????????????????????????# #*% | | ????????????????????????????????????????????##=!=! | | ????????????????????????????????????????????# !!!! | | ????????????????????????????????????????????# = | | ????????????????????????????????????????????# %" | | ??????????????????????????????????#?????????# "" | | ???????????????????????########## ##????????# "R[ | | ???????????????????????# # ###??????# """ | | ???????????????????????# %# #??????# " | | ???????????????????????## ]! ## ##??# | | ????????????????????????#@ ! #??# | | ??????????????++#### ## pW ! W #####/### | | ????????????# Y W !%=% / = | | ????????????# Y %*= %=/ *[| | | ????????????# p % = / = | | ????????????# % / | | ????????????# [ / | | ????????????# ### ### W ## W W ######## | | ????????????####???# ??# #?# #??????# | | ???????????????????####??#####?###########??????# | | ????????????????????????????????????????????????# | | ????????????????????????????????????????????????# | | ????????????????????????????????????????????????# | | ????????????????????????????????????????????????# | | ????????????????????????????????????????????????# | | ????????????????????????????????????????????????# | | ????????????????????????????????????????????????# | | ????????????????????????????????????????????????## | | ??????????????????????????????????????""?????????? | | ??????????????????????????????????????""?????""??? | | ??????????????????????????????????????""?????""??? | | ??????????????????????????????????????T??????""??? | | ??????????????????????????????????????""??????T??? | | ??????????????????????????????????????""?????""??? | | ??????????????????????????????????????""?????""??? | +----------------------------------------------------+ Best States ------------- Heat Dissipation 121 Coolant Potential 120 Energy Generation 79 Energy Capacity 930 Matter Stores 300 Matter Capacity 300 Sight Range 22 Terrain Scan Range 16 Terrain Scan Density 85 Jamming Range 16 Corruption Containment 16 Corruption Block 14 Armor Coverage 1600 Resistance: KI 40 Resistance: EM 75 Core Shielding 30 Propulsion Shielding 90 Point Defense Rating 480 Weapon Cycling 25 Phase Shifting 15 Evasion (%) 55 Targeting Accuracy 12 Target Analysis 8 Core Analysis 8 Armor Integrity Analysis 30 Recoil Reduction 7 Offensive Hacking 20 Defensive Hacking 12 Authchip Count 3 Trap Extractor Capacity 6 Item Schematics ----------------- Huge Storage Unit | -10/Materials | Hacked Hcp. Storage Unit | -10/Materials | Hacked Seismic Detector | -9/Materials | Scanalyzed Powered Armor | -7/Factory | Hacked Lightning Gun | -7/Zion | Archive Matter Compressor | -7/Zion | Archive Gauss Cannon | -7/Zion | Archive Adv. Terrain Scanner | -7/Zion | Archive Launcher Guidance Computer | -7/Zion | Archive Adv. Signal Interpreter | -7/Zion | Archive Mak. Leg | -7/Zion | Archive Imp. Thermal Shield | -7/Zion | Archive Imp. Arc Projector | -7/Zion | Archive Hvy. Battle Rifle | -7/Zion | Archive Lgt. Angular Momentum Engine | -7/Zion | Archive Beamcaster | -7/Zion | Archive Enh. Optical Array | -7/Zion | Archive Imp. KE Penetrator | -7/Zion | Archive Hacking Suite | -6/Factory | Scanalyzed Centrium Heavy Treads | -5/Factory | Scanalyzed Assault Drone Bay | -4/Zhirov | Free Exp. Heat Sink | -4/Zhirov | Free Exp. Optical Array | -4/Zhirov | Free Imp. Arc Thrower | -4/Zhirov | Free Prc. Phase Gun | -3/Testing | Archive Exp. Focal Shield | -3/Testing | Archive Hvy. Hardcell Cannon | -2/Quarantine | Archive Robot Schematics ------------------ K-01 Serf | -7/Zion | Archive T-07 Excavator | -7/Zion | Archive G-47 Trooper | -7/Zion | Archive R-06 Scavenger | -2/Quarantine | Archive Fabricated ------------ S-27 Virus | x4 | -7/Factory | Preloaded Com. HERF Cannon | x1 | -5/Factory | Preloaded Powered Armor | x2 | -5/Factory | Authchip Centrium Heavy Treads | x1 | -5/Factory Enh. Optical Array | x1 | -4/Factory | Authchip Alien Tech Used ----------------- Integrated Reactor Transdimensional Reconstructor Phase Redirector Core Stripper Subatomic Replicator Achievements -------------- None Challenges ------------ None Game ------ Seed MiniSegregatorFrame Manual? 0 Play Time 05:48:02 Cumulative 195.3 hours Start 2022.09.23 @ 14:35:55 End 2022.09.24 @ 17:08:29 Sessions 3 Manual Loads 0 Difficulty Rogue Special Mode None Game No. 75 Rogue 75 Adventurer 0 Explorer 0 Win Type - Total 8 Types 3/1/2/1/1/0/0/0/0 Lore% 80 Gallery% 74 Achievement% 64 Wizard Run 0 Options --------- ASCII 0 Keyboard 1 Movement Numpad Keybinds 0 Fullscreen 2 Font 18/X11 Map View 76x50 Tactical HUD 1 Map Filters NONE Filters NONE Steam 1 RUN: c3110a88-354f-4fa7-a707-0bc09d0df04e